bitfinex/quotes_SOLUSD_20240930
["timestamp","ask_amount","ask_price","bid_price","bid_amount"]
[1727664527446,23.776884,157.23,157.15,15.9677]
[1727664528156,23.776884,157.23,157.16,1.27239626]
[1727664528321,23.746734,157.23,157.16,1.27239626]
[1727664528526,23.746734,157.23,157.15,15.9677]
[1727664529559,0.5,157.22,157.15,15.9677]
[1727664529954,0.5,157.22,157.16,30.0]
[1727664530749,23.746734,157.23,157.16,30.0]
[1727664530958,23.746734,157.23,157.16,31.27241932]
[1727664531433,23.746734,157.23,157.16,30.0]
[1727664531940,0.5,157.22,157.16,30.0]
[1727664532138,23.746734,157.23,157.16,30.0]
[1727664532343,0.5,157.22,157.16,30.0]
[1727664533950,23.776884,157.2,157.16,30.0]
[1727664534259,0.5,157.19,157.16,30.0]
[1727664535459,23.776884,157.2,157.16,30.0]
[1727664536163,23.776884,157.2,157.15,15.9677]
[1727664538938,0.5,157.19,157.15,15.9677]
[1727664539845,23.776884,157.2,157.15,15.9677]
[1727664540254,23.776884,157.2,157.16,10.1980954]
[1727664540555,0.5,157.19,157.16,10.1980954]
[1727664541139,0.5,157.19,157.15,15.9677]
[1727664541342,0.5,157.19,157.16,30.0]
[1727664541655,30.389964,157.18,157.1,15.028]
[1727664541961,24.276884,157.17,157.11,10.1980954]
[1727664542453,24.276884,157.17,157.13,30.0]
[1727664543037,23.776884,157.17,157.13,40.1980954]
[1727664543882,15.901,157.23,157.13,40.1980954]
[1727664543883,6.399,157.24,157.15,10.1980954]
[1727664544072,6.3613,157.2,157.15,10.1980954]
[1727664544266,6.3624,157.18,157.13,30.0]
[1727664544440,0.5,157.17,157.13,30.0]
[1727664545143,24.276884,157.17,157.13,30.0]
[1727664546767,24.276884,157.17,157.11,10.1980954]
[1727664546968,23.776884,157.15,157.1,25.2260954]
[1727664547315,0.5,157.14,157.1,25.2260954]
[1727664549759,0.5,157.14,157.11,30.0]
[1727664550747,23.902374,157.16,157.11,30.0]
[1727664551245,23.776884,157.16,157.12,10.1980954]
[1727664551657,24.027864,157.17,157.12,10.1980954]
[1727664553766,24.027864,157.17,157.14,10.1980954]
[1727664553767,23.776884,157.17,157.14,10.1980954]
[1727664554264,23.776884,157.18,157.14,10.1980954]
[1727664555075,23.776884,157.19,157.14,10.1980954]
[1727664555762,23.776884,157.19,157.16,10.1980954]
[1727664555977,23.776884,157.2,157.16,10.1980954]
[1727664556463,0.5,157.19,157.16,10.1980954]
[1727664556851,23.776884,157.2,157.16,10.1980954]
[1727664558362,0.5,157.19,157.16,10.1980954]
[1727664559464,23.776884,157.2,157.16,10.1980954]
[1727664559670,23.902374,157.21,157.16,10.1980954]
[1727664559968,23.902374,157.22,157.18,10.1980954]
[1727664560558,1.10808425,157.26,157.18,10.1980954]
[1727664560869,22.4542,157.28,157.2,10.1980954]
[1727664561072,6.3593,157.25,157.2,10.1980954]
[1727664561445,0.5,157.24,157.2,10.1980954]
[1727664562149,0.5,157.24,157.16,15.0264]
[1727664562150,30.636584,157.24,157.18,10.1980954]
[1727664563782,24.276884,157.24,157.18,10.1980954]
[1727664564161,30.636584,157.24,157.18,10.1980954]
[1727664565166,30.636584,157.24,157.19,30.0]
[1727664567678,30.636584,157.24,157.18,10.1980954]
[1727664568568,23.902374,157.25,157.2,10.1980954]
[1727664569575,30.261874,157.25,157.2,10.1980954]
[1727664570691,30.261874,157.25,157.2,40.1980954]
[1727664573273,23.902374,157.25,157.2,40.1980954]
[1727664576576,0.12549,157.24,157.2,40.1980954]
[1727664576893,23.776884,157.23,157.2,30.0]
[1727664577099,0.5,157.22,157.2,30.0]
[1727664578596,23.776884,157.21,157.2,30.0]
[1727664579316,23.776884,157.22,157.17,10.1980954]
[1727664579538,23.776884,157.22,157.18,30.0]
[1727664580889,0.5,157.21,157.18,30.0]
[1727664581396,23.776884,157.22,157.18,30.0]
[1727664582409,0.5,157.21,157.18,30.0]
[1727664583490,23.776884,157.22,157.18,30.0]
[1727664584113,23.776884,157.22,157.17,10.1980954]
[1727664584694,0.5,157.21,157.17,10.1980954]
[1727664585208,0.5,157.21,157.18,30.0]
[1727664587020,0.5,157.21,157.17,10.1980954]
[1727664588008,23.776884,157.2,157.17,10.1980954]
[1727664588320,0.5,157.19,157.17,10.1980954]
[1727664588694,0.5,157.19,157.15,10.1980954]
[1727664589017,6.48759,157.18,157.13,4.21526332]
[1727664589212,24.276884,157.17,157.12,26.3325954]
[1727664589405,30.639384,157.17,157.12,26.3325954]
[1727664589925,30.639384,157.17,157.14,30.0]
[1727664590412,24.276884,157.17,157.14,30.0]
[1727664592805,24.276884,157.17,157.13,30.0]
[1727664593251,23.776884,157.17,157.13,30.0]
[1727664594910,0.5,157.16,157.13,30.0]
[1727664596440,23.776884,157.17,157.13,30.0]
[1727664598219,23.902374,157.18,157.13,30.0]
[1727664599520,0.12549,157.16,157.13,30.0]
[1727664599724,24.276884,157.15,157.13,30.0]
[1727664599935,0.5,157.14,157.13,30.0]
[1727664600232,23.902374,157.16,157.13,30.0]
[1727664600431,24.276884,157.15,157.13,30.0]
[1727664601427,0.5,157.14,157.13,30.0]
[1727664601808,0.5,157.14,157.12,30.0]
[1727664602016,0.5,157.14,157.11,10.1980954]
[1727664602636,0.5,157.14,157.09,10.1980954]
[1727664602840,0.5,157.14,157.1,30.0]
[1727664603030,0.25098,157.16,157.09,10.1980954]
[1727664603229,24.027864,157.16,157.09,10.1980954]
[1727664603527,24.276884,157.15,157.09,10.1980954]
[1727664603762,24.276884,157.15,157.1,30.0]
[1727664604543,23.776884,157.15,157.1,30.0]
[1727664604830,24.027864,157.13,157.1,30.0]
[1727664605037,24.027864,157.13,157.03,15.0777]
[1727664605038,6.3658,157.09,157.03,15.0777]
[1727664605213,0.5,157.08,157.05,30.0]
[1727664606134,30.268074,157.09,157.05,30.0]
[1727664606135,0.25098,157.09,157.05,30.0]
[1727664606515,0.12549,157.09,157.05,30.0]
[1727664607026,23.776884,157.08,157.05,30.0]
[1727664607227,0.5,157.07,157.05,30.0]
[1727664607931,23.776884,157.08,157.05,40.1980954]
[1727664608140,6.6554,157.11,157.07,10.1980954]
[1727664608343,16.3082,157.15,157.09,10.1980954]
[1727664608344,0.12549,157.14,157.09,10.1980954]
[1727664608643,16.3082,157.15,157.11,10.1980954]
[1727664608857,12.8911,157.16,157.11,10.1980954]
[1727664609232,6.5282,157.16,157.11,10.1980954]
[1727664609834,6.3621,157.18,157.11,10.1980954]
[1727664610036,6.3621,157.18,157.13,10.1980954]
[1727664611139,0.25098,157.16,157.13,10.1980954]
[1727664611343,23.776884,157.17,157.13,10.1980954]
[1727664612339,23.902374,157.15,157.11,10.1980954]
[1727664612550,24.276884,157.14,157.11,10.1980954]
[1727664612742,24.276884,157.14,157.09,10.1980954]
[1727664612936,0.12549,157.13,157.09,10.1980954]
[1727664613142,24.276884,157.12,157.09,10.1980954]
[1727664613335,23.776884,157.12,157.09,10.1980954]
[1727664613528,23.776884,157.12,157.1,30.0]
[1727664613758,0.5,157.11,157.1,30.0]
[1727664614134,24.276884,157.11,157.1,30.0]
[1727664614452,23.776884,157.11,157.1,30.0]
[1727664614642,23.776884,157.11,157.09,10.1980954]
[1727664615146,23.776884,157.12,157.09,10.1980954]
[1727664615443,0.5,157.11,157.09,10.1980954]
[1727664616334,23.776884,157.12,157.09,10.1980954]
[1727664616546,23.776884,157.12,157.11,10.1980954]
[1727664618044,23.776884,157.12,157.11,40.1980954]
[1727664618245,0.25098,157.17,157.11,40.1980954]
[1727664618735,24.027864,157.17,157.11,40.1980954]
[1727664619158,24.027864,157.17,157.13,10.1980954]
[1727664619957,0.25098,157.15,157.11,30.0]
[1727664620143,24.276884,157.14,157.11,30.0]
[1727664620956,23.776884,157.14,157.13,10.1980954]
[1727664622060,23.776884,157.14,157.11,10.1980954]
[1727664622241,24.276884,157.13,157.06,20.0]
[1727664622441,24.276884,157.12,157.08,10.1980954]
[1727664622639,23.776884,157.12,157.08,10.1980954]
[1727664623760,24.276884,157.11,157.07,30.0]
[1727664623965,24.276884,157.11,157.07,40.1980954]
[1727664624137,0.5,157.11,157.07,30.0]
[1727664625751,0.5,157.11,157.06,30.0]
[1727664625962,24.027864,157.1,157.06,30.0]
[1727664626264,24.276884,157.09,157.06,30.0]
[1727664627060,24.027864,157.1,157.06,30.0]
[1727664627362,24.027864,157.1,157.05,10.1980954]
[1727664628239,24.276884,157.09,157.05,10.1980954]
[1727664628434,0.25098,157.08,157.03,10.1980954]
[1727664628642,23.776884,157.07,157.03,10.1980954]
[1727664629260,23.776884,157.07,157.02,30.0]
[1727664629567,23.776884,157.06,157.02,40.1980954]
[1727664629943,0.5,157.05,157.02,40.1980954]
[1727664630144,24.276884,157.05,157.02,40.1980954]
[1727664630345,24.276884,157.05,157.02,30.0]
[1727664630549,6.2044,157.08,157.02,30.0]
[1727664630550,24.276884,157.04,157.02,30.0]
[1727664630770,24.276884,157.03,157.02,30.0]
[1727664631245,23.776884,157.03,157.02,30.0]
[1727664631664,23.776884,157.03,157.0,10.1980954]
[1727664631966,24.276884,157.02,156.99,30.0]
[1727664632267,24.276884,157.02,156.99,40.1980954]
[1727664632477,24.276884,157.02,156.99,30.0]
[1727664632650,24.027864,157.0,156.99,30.0]
[1727664632969,0.25098,156.99,156.97,10.1980954]
[1727664633171,23.776884,157.0,156.97,10.1980954]
[1727664633352,23.776884,157.0,156.99,10.1980954]
[1727664634167,24.027864,157.0,156.98,11.010084]
[1727664634466,23.776884,157.01,156.98,11.010084]
[1727664634672,24.027864,157.02,156.98,11.010084]
[1727664635356,0.5,157.01,156.98,11.010084]
[1727664635557,0.5,157.01,157.0,10.1980954]
[1727664635762,16.1477,157.07,157.0,10.1980954]
[1727664636074,16.1477,157.07,156.98,0.8119886]
[1727664636075,16.1477,157.07,157.02,10.1980954]
[1727664636945,0.25098,157.03,156.99,10.1980954]
[1727664637144,0.5,157.02,156.99,10.1980954]
[1727664638862,24.027864,157.03,156.99,10.1980954]
[1727664639775,0.25098,157.03,156.99,10.1980954]
[1727664640465,24.276884,157.02,156.99,10.1980954]
[1727664640676,23.902374,157.01,156.99,10.1980954]
[1727664641992,23.776884,157.01,156.99,10.1980954]
[1727664644270,24.276884,157.0,156.99,10.1980954]
[1727664644479,24.402374,157.0,156.98,0.8119886]
[1727664644786,24.276884,156.99,156.98,0.8119886]
[1727664645494,23.776884,156.99,156.98,0.8119886]
[1727664647872,0.5,157.06,156.98,0.8119886]
[1727664648073,6.3674,157.05,157.01,10.1980954]
[1727664648491,16.1477,157.07,157.01,10.1980954]
[1727664648676,22.5143,157.07,157.01,10.1980954]
[1727664648867,6.867,157.06,157.01,10.1980954]
[1727664649080,6.3674,157.05,157.01,10.1980954]
[1727664649271,0.5,157.04,157.01,10.1980954]
[1727664649787,16.1477,157.07,157.01,10.1980954]
[1727664650264,6.867,157.06,157.01,10.1980954]
[1727664650993,6.49289,157.05,156.98,0.8119886]
[1727664651177,0.12549,157.03,157.0,10.1980954]
[1727664651378,24.276884,157.02,157.0,10.1980954]
[1727664652387,0.5,157.01,157.0,10.1980954]
[1727664653387,0.5,157.01,156.98,0.8119886]
[1727664653588,23.776884,157.02,156.98,11.010084]
[1727664653889,0.25098,157.01,156.98,11.010084]
[1727664655091,0.25098,157.01,157.0,10.1980954]
[1727664655393,24.527864,157.01,157.0,10.1980954]
[1727664657696,24.027864,157.01,157.0,10.1980954]
[1727664660870,23.776884,157.01,157.0,10.1980954]
[1727664663880,24.027864,157.06,157.0,10.1980954]
[1727664664078,30.394864,157.06,157.03,10.1980954]
[1727664665195,24.027864,157.04,157.03,10.1980954]
[1727664665379,24.027864,157.04,157.01,10.1980954]
[1727664665578,24.276884,157.03,157.01,10.1980954]
[1727664666491,0.5,157.02,157.01,10.1980954]
[1727664666716,23.776884,157.03,157.01,10.1980954]
[1727664667004,0.5,157.02,157.01,10.1980954]
[1727664667891,0.5,157.02,156.98,11.010084]
[1727664669201,0.5,157.02,156.98,0.8119886]
[1727664672599,0.25098,157.01,156.98,0.8119886]
[1727664672804,24.276884,157.0,156.98,0.8119886]
[1727664674602,24.027864,156.99,156.98,0.8119886]
[1727664674901,30.397664,156.99,156.98,0.8119886]
[1727664676292,24.027864,156.99,156.98,0.8119886]
[1727664676489,30.397664,156.99,156.98,0.8119886]
[1727664676986,24.027864,156.99,156.98,0.8119886]
[1727664677192,30.397664,156.99,156.98,0.8119886]
[1727664677802,24.027864,156.99,156.98,0.8119886]
[1727664678500,0.25098,156.99,156.98,0.8119886]
[1727664680209,30.397664,156.99,156.98,0.8119886]
[1727664682390,30.897664,156.99,156.98,0.8119886]
[1727664684707,37.456364,156.99,156.98,0.8119886]
[1727664685008,6.3725,156.93,156.87,15.711]
[1727664685194,0.12549,156.91,156.88,30.0]
[1727664685797,0.12549,156.91,156.87,25.9090954]
[1727664685798,23.776884,156.9,156.87,25.9090954]
[1727664686015,23.776884,156.9,156.87,25.4090954]
[1727664686206,0.25098,156.89,156.83,8.3246661]
[1727664686525,0.25098,156.9,156.86,10.1980954]
[1727664686813,0.25098,156.9,156.85,30.0]
[1727664688197,6.62478,156.9,156.85,30.0]
[1727664688501,0.25098,156.88,156.85,30.0]
[1727664689401,0.25098,156.88,156.84,0.63441861]
[1727664689604,0.25098,156.88,156.84,30.63441861]
[1727664691498,6.6472,156.93,156.84,30.63441861]
[1727664691700,6.3739,156.89,156.84,30.63441861]
[1727664691899,6.3726,156.92,156.85,10.1980954]
[1727664692096,6.6472,156.93,156.87,10.1980954]
[1727664692304,6.373,156.92,156.87,10.1980954]
[1727664692617,6.3728,156.92,156.85,10.1980954]
[1727664693217,1.11037753,156.92,156.85,10.1980954]
[1727664693400,24.027864,156.9,156.85,10.1980954]
[1727664693602,1.11037753,156.92,156.89,10.1980954]
[1727664693921,12.5733,156.97,156.89,10.1980954]
[1727664694123,13.68333741,156.97,156.89,10.1980954]
[1727664695309,0.25098,156.95,156.89,10.1980954]
[1727664695920,0.25098,156.95,156.9,10.1980954]
[1727664699019,0.25098,156.95,156.86,15.3252]
[1727664699216,0.25098,156.95,156.88,10.1980954]
[1727664699518,0.25098,156.95,156.87,30.0]
[1727664699722,0.25098,156.95,156.88,10.1980954]
[1727664699920,0.25098,156.95,156.9,10.1980954]
[1727664701106,23.776884,156.94,156.88,10.1980954]
[1727664701312,0.25098,156.93,156.88,10.1980954]
[1727664701714,7.31273741,156.97,156.92,10.1980954]
[1727664702021,13.68333741,156.97,156.9,10.1980954]
[1727664702728,7.31273741,156.97,156.92,10.1980954]
[1727664703020,0.25098,156.95,156.89,10.1980954]
[1727664703402,0.25098,156.95,156.84,8.14709611]
[1727664703608,6.62248,156.95,156.88,10.1980954]
[1727664703799,0.25098,156.93,156.88,10.1980954]
[1727664704024,0.25098,156.93,156.84,0.63441861]
[1727664704205,0.25098,156.93,156.85,10.1980954]
[1727664704206,0.25098,156.91,156.85,10.1980954]
[1727664704820,0.25098,156.89,156.85,10.1980954]
[1727664705009,0.25098,156.89,156.84,0.63441861]
[1727664707013,24.027864,156.86,156.84,0.63441861]
[1727664708736,0.25098,156.86,156.84,0.63441861]
[1727664712527,22.6208,156.88,156.84,0.63441861]
[1727664713132,28.9951,156.88,156.84,0.63441861]
[1727664713313,22.6208,156.88,156.84,0.63441861]
[1727664713836,0.25098,156.86,156.84,0.63441861]
[1727664714445,23.776884,156.87,156.84,0.63441861]
[1727664714628,6.4994,156.88,156.84,10.83251401]
[1727664715449,21.673,156.92,156.84,0.63441861]
[1727664715737,21.673,156.92,156.86,10.1980954]
[1727664716129,6.4354,156.92,156.88,10.1980954]
[1727664717338,21.6087,156.96,156.88,10.1980954]
[1727664717339,21.7968,156.96,156.88,10.1980954]
[1727664718436,24.027864,156.95,156.88,10.1980954]
[1727664720341,21.7968,156.96,156.88,10.1980954]
[1727664720584,21.7968,156.96,156.9,10.1980954]
[1727664721636,21.7968,156.96,156.85,16.1971]
[1727664721637,23.902374,156.95,156.85,16.1971]
[1727664721840,23.902374,156.95,156.88,10.1980954]
[1727664722027,23.902374,156.95,156.9,10.1980954]
[1727664722227,0.12549,156.95,156.9,10.1980954]
[1727664722428,7.48060163,156.98,156.92,10.1980954]
[1727664722429,1.11010163,156.98,156.92,10.1980954]
[1727664722641,21.8054,157.0,156.92,10.1980954]
[1727664722974,22.91531688,157.0,156.92,10.1980954]
[1727664723829,24.027864,156.99,156.92,10.1980954]
[1727664724240,23.902374,156.99,156.92,10.1980954]
[1727664725643,23.902374,156.99,156.9,10.1980954]
[1727664725948,0.12549,156.98,156.91,30.0]
[1727664726660,0.12549,156.98,156.9,10.1980954]
[1727664726846,0.12549,156.98,156.86,20.0]
[1727664727027,0.12549,156.98,156.89,10.1980954]
[1727664727438,0.12549,156.98,156.9,30.0]
[1727664727841,23.902374,156.97,156.9,30.0]
[1727664728046,23.902374,156.96,156.9,30.0]
[1727664728229,0.12549,156.95,156.9,30.0]
[1727664728627,0.12549,156.95,156.88,10.1980954]
[1727664730554,0.12549,156.95,156.85,16.1971]
[1727664730778,6.3735,156.9,156.84,0.63441861]
[1727664730929,24.027864,156.93,156.84,0.63441861]
[1727664731847,24.027864,156.93,156.85,10.1980954]
[1727664732355,24.027864,156.93,156.85,40.1980954]
[1727664732527,24.027864,156.93,156.85,30.0]
[1727664733147,24.027864,156.91,156.85,30.0]
[1727664733938,24.027864,156.91,156.84,0.63441861]
[1727664735356,24.027864,156.89,156.84,0.63441861]
[1727664737451,0.25098,156.89,156.84,0.63441861]
[1727664738359,6.3752,156.86,156.84,0.63441861]
[1727664738534,30.402564,156.87,156.84,0.63441861]
[1727664741251,30.403364,156.85,156.84,0.63441861]
[1727664741855,24.027864,156.85,156.84,0.63441861]
[1727664742449,6.4508,156.88,156.84,0.63441861]
[1727664742636,22.8576,156.92,156.84,0.63441861]
[1727664744560,29.2303,156.92,156.84,0.63441861]
[1727664744759,0.25098,156.91,156.84,0.63441861]
[1727664744953,24.027864,156.91,156.84,0.63441861]
[1727664748259,23.776884,156.91,156.84,0.63441861]
[1727664748567,22.8576,156.92,156.84,0.63441861]
[1727664749870,0.25098,156.9,156.84,0.63441861]
[1727664756552,0.25098,156.9,156.84,10.8734953]
[1727664756971,0.12549,156.9,156.84,10.8734953]
[1727664757272,1.11040172,156.93,156.88,26.47567669]
[1727664757446,6.3698,156.99,156.9,10.23907669]
[1727664757652,22.7371,157.0,156.92,10.23907669]
[1727664757653,1.11007353,156.98,156.92,10.23907669]
[1727664757866,1.11007353,156.98,156.9,10.23907669]
[1727664759769,24.027864,156.97,156.88,16.2366]
[1727664759978,24.027864,156.97,156.89,30.0]
[1727664761051,24.027864,156.97,156.9,1.27463962]
[1727664761259,1.11007353,156.98,156.9,1.27454479]
[1727664761583,6.3682,157.03,156.91,15.98349843]
[1727664761752,6.3682,157.03,156.7,6.62737353]
[1727664761753,50.0,156.83,156.7,6.62737353]
[1727664761953,8.2898,156.89,156.7,6.62737353]
[1727664761954,1.27454479,156.82,156.72,30.0]
[1727664762152,1.27454479,156.82,156.67,0.8119886]
[1727664762153,6.3765,156.83,156.67,0.8119886]
[1727664762354,6.3765,156.83,156.69,15.98349843]
[1727664762569,24.027864,156.81,156.69,15.98349843]
[1727664762766,24.027864,156.81,156.7,6.3815]
[1727664762970,24.027864,156.81,156.69,15.98349843]
[1727664762971,1.27454479,156.8,156.69,15.98349843]
[1727664763175,24.027864,156.79,156.67,0.8119886]
[1727664763369,24.027864,156.77,156.67,7.1947886]
[1727664763558,1.27454479,156.76,156.69,6.3819]
[1727664763754,24.027864,156.82,156.71,6.3811]
[1727664763958,30.405464,156.8,156.69,6.3817]
[1727664764165,24.027864,156.78,156.7,6.3815]
[1727664764382,24.027864,156.76,156.7,6.3815]
[1727664764579,1.27454479,156.75,156.7,6.3815]
[1727664766566,1.27454479,156.83,156.68,0.25098]
[1727664766773,23.776884,156.82,156.68,0.25098]
[1727664766974,23.776884,156.8,156.68,0.25098]
[1727664767176,23.776884,156.78,156.68,0.25098]
[1727664767455,1.27454479,156.77,156.68,0.25098]
[1727664767654,23.776884,156.8,156.67,16.79548703]
[1727664767875,0.12549,156.78,156.67,16.79548703]
[1727664768221,1.27454479,156.77,156.71,6.3809]
[1727664768367,23.776884,156.76,156.71,6.3809]
[1727664768567,1.27454479,156.75,156.71,6.3809]
[1727664768765,23.902374,156.77,156.67,16.79548703]
[1727664769180,1.27454479,156.76,156.67,16.79548703]
[1727664769781,0.12549,156.78,156.68,1.27610591]
[1727664770084,6.6479499,156.84,156.7,15.98349843]
[1727664770283,24.027864,156.83,156.74,6.3799]
[1727664770485,0.25098,156.83,156.74,6.3799]
[1727664770672,1.27454479,156.82,156.74,6.3799]
[1727664770875,0.25098,156.81,156.74,6.3799]
[1727664771372,13.0239499,156.84,156.73,6.5199]
[1727664771373,0.25098,156.79,156.73,6.5199]
[1727664771579,0.25098,156.77,156.7,6.3813]
[1727664771888,23.776884,156.75,156.7,6.3813]
[1727664772388,21.58829437,156.75,156.7,6.3813]
[1727664772690,0.25098,156.77,156.7,6.3813]
[1727664772860,0.25098,156.77,156.71,6.3811]
[1727664773286,0.25098,156.81,156.72,6.3807]
[1727664774693,24.027864,156.81,156.69,15.98349843]
[1727664774887,24.027864,156.81,156.73,6.3803]
[1727664775262,24.027864,156.81,156.69,15.98349843]
[1727664775483,24.027864,156.81,156.71,6.3808]
[1727664775683,24.027864,156.81,156.72,6.3807]
[1727664775884,24.027864,156.81,156.72,21.3881]
[1727664776274,30.405064,156.81,156.72,21.3881]
[1727664778484,142.50002577,156.87,156.73,1.27600342]
[1727664778692,6.3759,156.84,156.75,6.3795]
[1727664779584,20.0,156.86,156.72,15.0074]
[1727664779782,24.027864,156.82,156.73,6.38]
[1727664781491,24.027864,156.78,156.72,15.0074]
[1727664781672,0.25098,156.78,156.72,15.0074]
[1727664781989,0.25098,156.78,156.72,21.3881]
[1727664782674,0.25098,156.78,156.73,6.3803]
[1727664786070,0.25098,156.78,156.72,21.3881]
[1727664786271,23.776884,156.79,156.73,7.65600021]
[1727664786478,23.776884,156.79,156.73,6.38]
[1727664787797,1.11132084,156.8,156.74,6.3798]
[1727664788002,1.11132084,156.8,156.72,15.0074]
[1727664788208,1.11132084,156.8,156.75,6.3795]
[1727664788383,24.027864,156.82,156.75,6.3795]
[1727664788584,0.25098,156.82,156.75,6.3795]
[1727664788992,0.12549,156.82,156.75,6.3795]
[1727664789196,0.12549,156.82,156.74,6.3799]
[1727664790006,23.902374,156.82,156.74,6.3799]
[1727664790200,0.12549,156.81,156.75,6.3794]
[1727664791711,0.12549,156.81,156.72,30.99089843]
[1727664791900,0.12549,156.81,156.77,6.3787]
[1727664792107,0.12549,156.81,156.76,6.3791]
[1727664793102,23.902374,156.82,156.76,6.3791]
[1727664793294,0.12549,156.81,156.76,6.3791]
[1727664794211,23.776884,156.82,156.77,7.65440718]
[1727664794503,1.11110256,156.83,156.77,6.3787]
[1727664794895,7.48760256,156.83,156.75,6.3794]
[1727664795093,7.48760256,156.83,156.72,30.99089843]
[1727664795292,1.11110256,156.83,156.72,30.99089843]
[1727664795507,1.11110256,156.83,156.73,1.27570362]
[1727664795687,23.902374,156.82,156.73,1.27570362]
[1727664795886,1.11110256,156.83,156.72,30.99089843]
[1727664796188,1.11110256,156.83,156.73,7.56025711]
[1727664796584,1.11110256,156.83,156.74,15.98349843]
[1727664796783,6.2898,156.89,156.75,1.27545798]
[1727664796986,6.2898,156.89,156.74,15.98349843]
[1727664796987,6.3754,156.86,156.74,15.98349843]
[1727664797805,0.25098,156.85,156.74,15.98349843]
[1727664797986,0.25098,156.85,156.75,1.27543892]
[1727664798386,1.11082596,156.87,156.76,15.98349843]
[1727664799712,23.902374,156.86,156.76,15.98349843]
[1727664799891,30.277774,156.86,156.74,15.98349843]
[1727664800100,23.902374,156.84,156.73,6.2847]
[1727664800400,0.12549,156.83,156.73,6.2847]
[1727664800807,6.3768,156.82,156.73,6.2847]
[1727664801113,24.027864,156.81,156.73,6.2847]
[1727664801488,24.027864,156.81,156.76,3.46622639]
[1727664802189,0.25098,156.81,156.76,3.46622639]
[1727664802802,6.375,156.87,156.79,6.3779]
[1727664803115,6.50059,156.86,156.78,6.3783]
[1727664803302,6.50059,156.86,156.76,3.46622639]
[1727664803303,0.12549,156.86,156.76,3.46622639]
[1727664803489,6.3755,156.85,156.76,3.46622639]
[1727664803801,6.50059,156.86,156.76,3.46622639]
[1727664804708,0.25098,156.84,156.76,3.46622639]
[1727664804917,23.776884,156.86,156.77,1.27548296]
[1727664805209,0.25098,156.85,156.76,3.46622639]
[1727664805405,0.25098,156.85,156.77,1.2755007]
[1727664805607,0.25098,156.85,156.76,3.46622639]
[1727664805608,0.25098,156.85,156.76,19.44972482]
[1727664806488,0.12549,156.85,156.76,19.44972482]
[1727664809322,0.25098,156.85,156.76,3.46622639]
[1727664809503,0.12549,156.83,156.76,3.46622639]
[1727664809699,23.902374,156.83,156.76,3.46622639]
[1727664810091,0.12549,156.83,156.76,3.46622639]
[1727664810912,0.12549,156.83,156.77,30.0]
[1727664811438,0.25098,156.83,156.77,30.0]
[1727664811595,23.776884,156.82,156.77,30.0]
[1727664812519,24.027864,156.83,156.77,30.0]
[1727664813103,30.404164,156.83,156.76,3.46622639]
[1727664813301,23.902374,156.81,156.76,3.46622639]
[1727664813725,0.12549,156.8,156.76,3.46622639]
[1727664826936,23.902374,156.79,156.76,3.46622639]
[1727664827630,30.280474,156.79,156.76,3.46622639]
[1727664827819,23.902374,156.77,156.76,3.46622639]
[1727664828325,24.027864,156.77,156.76,3.46622639]
[1727664834133,30.406564,156.77,156.76,3.46622639]
[1727664835038,29.906564,156.77,156.76,3.46622639]
[1727664837146,30.032054,156.77,156.76,3.46622639]
[1727664838316,6.3808,156.72,156.68,16.6112]
[1727664838523,24.027864,156.71,156.68,16.6112]
[1727664839021,24.027864,156.71,156.67,0.8119886]
[1727664840416,0.12549,156.71,156.67,0.8119886]
[1727664841423,6.3795,156.76,156.68,6.3823]
[1727664841734,6.3803,156.74,156.67,0.8119886]
[1727664842841,30.408364,156.73,156.67,0.8119886]
[1727664843539,6.3808,156.72,156.67,0.8119886]
[1727664843754,24.027864,156.71,156.67,0.8119886]
[1727664843918,30.409064,156.71,156.67,0.8119886]